fUSD/lending_fUSD_20240527
["ID","MTS","AMOUNT","RATE_DAILY","PERIOD"]
[328049362,1716817852212,-500.0,0.00032876,7]
[328049363,1716817852222,-1080.68,0.00032876,7]
[328049364,1716817852231,-699.97,0.00032876,7]
[328049365,1716817852241,-500.0,0.00032876,7]
[328049366,1716817852250,-1080.68,0.00032876,7]
[328049367,1716817852259,-699.97,0.00032876,7]
[328049368,1716817852268,-500.0,0.00032876,7]
[328049369,1716817852278,-1080.68,0.00032876,7]
[328049370,1716817852287,-500.0,0.00032876,7]
[328049371,1716817852298,-500.0,0.00032876,7]
[328049372,1716817852307,-627.83,0.00032876,7]
[328049373,1716817852316,-500.0,0.00032876,7]
[328049374,1716817852326,-627.83,0.00032876,7]
[328049375,1716817852335,-500.0,0.00032876,7]
[328049376,1716817852345,-627.83,0.00032876,7]
[328049377,1716817852354,-627.83,0.00032876,7]
[328049378,1716817852364,-627.83,0.00032876,7]
[328049379,1716817852373,-627.83,0.00032876,7]
[328049380,1716817852383,-627.83,0.00032876,7]
[328049381,1716817852392,-627.83,0.00032876,7]
[328049382,1716817852401,-627.83,0.00032876,7]
[328049383,1716817852411,-609.82,0.00032876,7]
[328049384,1716817852420,-609.82,0.00032876,7]
[328049385,1716817852430,-531.86,0.00032876,7]
[328049386,1716817852439,-609.82,0.00032876,7]
[328049387,1716817852449,-714.12,0.00032876,7]
[328049388,1716817852458,-531.86,0.00032876,7]
[328049389,1716817852467,-609.82,0.00032876,7]
[328049390,1716817852477,-531.86,0.00032876,7]
[328049391,1716817852486,-609.82,0.00032876,7]
[328049392,1716817852500,-531.86,0.00032876,7]
[328049393,1716817852509,-714.12,0.00032876,7]
[328049394,1716817852519,-609.82,0.00032876,7]
[328049395,1716817852528,-531.86,0.00032876,7]
[328049396,1716817852538,-714.12,0.00032876,7]
[328049397,1716817852547,-500.0,0.00032876,7]
[328049398,1716817852557,-609.82,0.00032876,7]
[328049399,1716817852568,-531.86,0.00032876,7]
[328049400,1716817852577,-340.03231965,0.00032876,7]
[328049401,1716817852586,-714.12,0.00032876,7]
[328049402,1716817852595,-609.82,0.00032876,7]
[328049403,1716817852604,-531.86,0.00032876,7]
[328049404,1716817852613,-714.12,0.00032876,7]
[328049405,1716817852623,-609.82,0.00032876,7]
[328049406,1716817852632,-714.12,0.00032876,7]
[328049407,1716817852641,-531.86,0.00032876,7]
[328049408,1716817852651,-714.12,0.00032876,7]
[328049409,1716817852661,-531.86,0.00032876,7]
[328049410,1716817852671,-714.12,0.00032876,7]
[328049411,1716817852680,-500.0,0.00032876,7]
[328049412,1716817852689,-714.12,0.00032876,7]
[328049413,1716817852698,-931.94,0.00032876,7]
[328049414,1716817852709,-714.12,0.00032876,7]
[328049415,1716817852719,-931.94,0.00032876,7]
[328049416,1716817852728,-507.74727988,0.00032876,7]
[328049417,1716817852738,-931.94,0.00032876,7]
[328049418,1716817852748,-931.94,0.00032876,7]
[328049419,1716817852758,-931.94,0.00032876,7]
[328049420,1716817852768,-931.94,0.00032876,7]
[328049421,1716817852778,-561.23,0.00032876,7]
[328049422,1716817852787,-931.94,0.00032876,7]
[328049423,1716817852796,-561.23,0.00032876,7]
[328049424,1716817852805,-931.94,0.00032876,7]
[328049425,1716817852814,-561.23,0.00032876,7]
[328049426,1716817852824,-931.94,0.00032876,7]
[328049427,1716817852834,-561.23,0.00032876,7]
[328049428,1716817852843,-561.23,0.00032876,7]
[328049429,1716817852853,-601.86661298,0.00032876,7]
[328049430,1716817852862,-561.23,0.00032876,7]
[328049431,1716817852871,-561.23,0.00032876,7]
[328049432,1716817852881,-561.23,0.00032876,7]
[328049433,1716817852891,-561.23,0.00032876,7]
[328049434,1716817852900,-561.23,0.00032876,7]
[328049435,1716817852909,-500.0,0.00032876,7]
[328049436,1716817852918,-500.0,0.00032876,7]
[328049437,1716817852929,-5101.58,0.00032876,7]
[328049438,1716817852939,-178.2,0.00032876,7]
[328049439,1716817852948,-5101.58,0.00032876,7]
[328049440,1716817852958,-5101.58,0.00032876,7]
[328049441,1716817852967,-5101.58,0.00032876,7]
[328049442,1716817852977,-5101.58,0.00032876,7]
[328049443,1716817852987,-5101.58,0.00032876,7]
[328049444,1716817852997,-5101.58,0.00032876,7]
[328049445,1716817853006,-5101.58,0.00032876,7]
[328049446,1716817853016,-500.0,0.00032876,7]
[328049447,1716817853025,-5101.58,0.00032876,7]
[328049448,1716817853035,-500.0,0.00032876,7]
[328049449,1716817853046,-5101.58,0.00032876,7]
[328049450,1716817853055,-500.0,0.00032876,7]
[328049451,1716817853064,-500.0,0.00032876,7]
[328049452,1716817853074,-500.0,0.00032876,7]
[328049453,1716817853083,-500.0,0.00032876,7]
[328049454,1716817853093,-500.0,0.00032876,7]
[328049455,1716817853103,-500.0,0.00032876,7]
[328049456,1716817853112,-500.0,0.00032876,7]
[328049457,1716817853121,-500.0,0.00032876,7]
[328049458,1716817853130,-500.0,0.00032876,7]
[328049459,1716817853139,-500.0,0.00032876,7]
[328049460,1716817853148,-500.0,0.00032876,7]
[328049461,1716817853157,-500.0,0.00032876,7]
[328049462,1716817853166,-500.0,0.00032876,7]
[328049463,1716817853177,-500.0,0.00032876,7]
[328049464,1716817853187,-500.0,0.00032876,7]
[328049465,1716817853195,-500.0,0.00032876,7]
[328049466,1716817853204,-500.0,0.00032876,7]
[328049467,1716817853214,-1184.59,0.00032876,7]
[328049468,1716817853224,-500.0,0.00032876,7]
[328049469,1716817853233,-500.0,0.00032876,7]
[328049470,1716817853243,-500.0,0.00032876,7]
[328049471,1716817853252,-1184.59,0.00032876,7]
[328049472,1716817853262,-500.0,0.00032876,7]
[328049473,1716817853271,-178.94048769,0.00032876,7]
[328049474,1716817857767,161.99,0.00013973,2]
[328049475,1716817893663,1263.5926443,0.00013973,2]
[328049478,1716818336168,164.13,0.00013973,2]
[328049481,1716818752155,-155.0,0.00016872,2]
[328049482,1716818752176,-241.0550986,0.00016873,2]
[328049483,1716818752196,-195.26054352,0.00016874,2]
[328049484,1716818752221,-500.49674922,0.000169,2]
[328049487,1716818933398,158.82,0.00013973,2]
[328049493,1716819031734,-153.86904226,0.000168,2]
[328049494,1716819031744,-1253.50325078,0.000169,2]
[328049496,1716819031754,-696.0,0.000169,2]
[328049498,1716819031764,-754.76520353,0.00017258,2]
[328049500,1716819031773,-156.04,0.00024387,2]
[328049501,1716819031783,-306.35,0.00024414,2]
[328049502,1716819031792,-164.0,0.00026,2]
[328049503,1716819031802,-3569.25598576,0.00026322,2]
[328049504,1716819031811,-160.42999606,0.0002709,2]
[328049505,1716819031822,-151.0,0.00027638,7]
[328049506,1716819031831,-151.0,0.00028353,7]
[328049507,1716819031841,-357.09,0.00028431,2]
[328049508,1716819031851,-282.1196435,0.00029258,2]
[328049509,1716819031861,-152.29738132,0.00029335,2]
[328049510,1716819031873,-261.01353915,0.00029496,2]
[328049511,1716819031883,-250.0,0.00030135,2]
[328049512,1716819031892,-2085.6,0.00030197,2]
[328049513,1716819031902,-742.52,0.00030213,2]
[328049514,1716819031912,-158.14625763,0.00030298,7]
[328049515,1716819031921,-156.89,0.00030359,2]
[328049516,1716819031930,-200.0,0.00030392,2]
[328049517,1716819031940,-608.19,0.00030408,2]
[328049518,1716819031951,-150.0,0.00030411,2]
[328049519,1716819031962,-160.01,0.00030443,2]
[328049520,1716819031971,-755.78,0.00030508,2]
[328049521,1716819031981,-156.89,0.00030585,2]
[328049522,1716819031990,-357.09,0.00030695,2]
[328049523,1716819032000,-156.89,0.00030811,2]
[328049524,1716819032010,-156.89,0.00031037,2]
[328049525,1716819032020,-156.89,0.00031263,2]
[328049526,1716819032029,-160.42999606,0.00031268,7]
[328049527,1716819032039,-156.89,0.00031489,2]
[328049528,1716819032049,-150.0,0.00031658,2]
[328049529,1716819032059,-156.89,0.00031715,2]
[328049530,1716819032069,-171.32,0.00031725,2]
[328049532,1716819032078,-441.67,0.0003178,2]
[328049534,1716819032087,-441.67,0.00031788,2]
[328049536,1716819032097,-441.67,0.00031797,2]
[328049538,1716819032106,-441.67,0.00031805,2]
[328049540,1716819032115,-441.67,0.00031813,2]
[328049542,1716819032124,-158.54105395,0.00031821,7]
[328049544,1716819032133,-441.67,0.00031822,2]
[328049546,1716819032143,-441.67,0.0003183,2]
[328049548,1716819032152,-441.67,0.00031838,2]
[328049550,1716819032161,-441.67,0.00031847,2]
[328049552,1716819032171,-441.67,0.00031855,2]
[328049553,1716819032180,-441.67,0.00031864,2]
[328049554,1716819032189,-441.67,0.00031872,2]
[328049555,1716819032198,-441.67,0.0003188,2]
[328049556,1716819032207,-441.67,0.00031889,2]
[328049557,1716819032219,-441.67,0.00031897,2]
[328049558,1716819032229,-441.67,0.00031905,2]
[328049559,1716819032238,-441.67,0.00031914,2]
[328049560,1716819032247,-441.67,0.00031922,2]
[328049561,1716819032257,-441.67,0.0003193,2]
[328049562,1716819032266,-441.67,0.00031939,2]
[328049563,1716819032275,-156.89,0.00031941,2]
[328049564,1716819032284,-8000.0,0.00032,30]
[328049565,1716819032293,-158.14625763,0.00032008,7]
[328049566,1716819032302,-1019.0,0.000321,2]
[328049567,1716819032311,-155.0,0.00032217,4]
[328049568,1716819032321,-193.575641,0.00032314,2]
[328049569,1716819032330,-623.958231,0.00032314,2]
[328049570,1716819032339,-309.721022,0.00032314,2]
[328049571,1716819032349,-202.971429,0.00032487,120]
[328049572,1716819032358,-1000.0,0.000325,7]
[328049573,1716819032367,-1053.07644,0.0003255,2]
[328049574,1716819032376,-150.0,0.00032594,2]
[328049575,1716819032385,-153.86904226,0.00032675,2]
[328049576,1716819032394,-1622.27476712,0.00032675,10]
[328049577,1716819032404,-1795.498,0.00032675,2]
[328049578,1716819032415,-7500.0,0.00032675,2]
[328049579,1716819032425,-1000.0,0.00032675,2]
[328049580,1716819032434,-892.0534,0.00032675,2]
[328049581,1716819032444,-244.79101047,0.00032676,2]
[328049582,1716819032453,-418.14941565,0.00032684,2]
[328049583,1716819032463,-623.958231,0.00032718,2]
[328049584,1716819032472,-309.721022,0.00032718,2]
[328049585,1716819032481,-1622.27476704,0.00032737,10]
[328049586,1716819032490,-244.79101044,0.00032756,2]
[328049587,1716819032499,-695.07,0.00032765,3]
[328049588,1716819032508,-155.11805651,0.00032773,4]
[328049589,1716819032517,-195.23883806,0.00032773,4]
[328049590,1716819032526,-240.9106731,0.00032773,4]
[328049591,1716819032535,-885.6821484,0.00032774,4]
[328049592,1716819032545,-190.94720952,0.00032775,2]
[328049593,1716819032554,-245000.0,0.00032775,2]
[328049594,1716819032563,-34495.23896569,0.00032775,2]
[328049595,1716819032575,-5533.60776916,0.00032775,2]
[328049596,1716819032586,-34496.05461253,0.00032775,2]
[328049597,1716819032598,-3475.06492478,0.00032775,2]
[328049598,1716819032609,-297.60919494,0.00032775,2]
[328049599,1716819032620,-272.48584934,0.00032775,2]
[328049600,1716819032631,-936.68903397,0.00032775,2]
[328049601,1716819032650,-756.27288357,0.00032775,2]
[328049602,1716819032662,-1778.39202569,0.00032775,2]
[328049609,1716819037835,-17958.58474033,0.00032775,2]
[328049610,1716819037845,-170.82833307,0.00032776,2]
[328049611,1716819037858,-243.59299652,0.00032776,4]
[328049612,1716819037869,-3169.96650356,0.00032776,4]
[328049613,1716819037879,-1622.27476704,0.00032799,10]
[328049614,1716819037889,-150.0,0.000328,7]
[328049615,1716819037899,-179.27167517,0.000328,7]
[328049616,1716819037910,-3169.96650349,0.00032818,4]
[328049617,1716819037920,-244.79101044,0.00032835,2]
[328049618,1716819037931,-5298.0,0.00032856,7]
[328049619,1716819037942,-3169.96650349,0.00032859,4]
[328049620,1716819037951,-1622.27476704,0.00032861,10]
[328049621,1716819037961,-380.70037141,0.00032864,2]
[328049622,1716819037972,-151.64,0.00032865,2]
[328049623,1716819037982,-151.64,0.00032866,2]
[328049624,1716819037992,-151.64,0.00032866,2]
[328049625,1716819038002,-151.64,0.00032866,2]
[328049626,1716819038011,-20552.72182838,0.00032871,2]
[328049627,1716819038023,-998.95886638,0.00032871,2]
[328049628,1716819038036,-639.75,0.00032871,2]
[328049629,1716819038047,-3463.76800003,0.00032871,2]
[328049630,1716819038166,-2850.20155374,0.00032871,2]
[328049657,1716819040558,-505.3,0.00032871,2]
[328049658,1716819040570,-425.80000015,0.00032871,2]
[328049659,1716819040581,-0.66681872,0.00032871,2]
[328049660,1716819040591,-2338.4547755,0.00032871,2]
[328049661,1716819040600,-691.6871277,0.00032871,2]
[328049662,1716819040610,-220.65236088,0.00032874,4]
[328049663,1716819040620,-259.00448085,0.00032874,4]
[328049664,1716819040629,-678.17504865,0.00032874,2]
[328049665,1716819040639,-3830.56539731,0.00032874,4]
[328049666,1716819040647,-167.83280986,0.00032874,4]
[328049667,1716819040657,-155.62949831,0.00032874,4]
[328049668,1716819040666,-21504.51665228,0.00032874,4]
[328049669,1716819040675,-363.43693257,0.00032875,4]
[328049670,1716819040685,-281.15994658,0.00032875,4]
[328049671,1716819040695,-38923.89006679,0.00032875,4]
[328049672,1716819041409,-5667.75231802,0.00032875,4]
[328049674,1716819041572,-528.8,0.00032875,4]
[328049720,1716819042707,-303.32510156,0.00032875,4]
[328049723,1716819042721,-468809.83916114,0.00032875,4]
[328049725,1716819042730,-500.0,0.00032875,2]
[328049727,1716819042739,-500.0,0.00032875,2]
[328049729,1716819042748,-500.0,0.00032875,2]
[328049730,1716819042757,-500.0,0.00032875,2]
[328049731,1716819042767,-500.0,0.00032875,2]
[328049732,1716819042777,-500.0,0.00032875,2]
[328049733,1716819042786,-259649.86569869,0.00032876,11]
[328049734,1716819042796,-500.0,0.00032876,7]
[328049735,1716819042806,-500.0,0.00032876,7]
[328049736,1716819042816,-500.0,0.00032876,7]
[328049737,1716819042825,-500.0,0.00032876,7]
[328049738,1716819042835,-500.0,0.00032876,7]
[328049739,1716819042844,-500.0,0.00032876,7]
[328049740,1716819042854,-500.0,0.00032876,7]
[328049741,1716819042866,-500.0,0.00032876,7]
[328049742,1716819042876,-500.0,0.00032876,7]
[328049743,1716819042885,-500.0,0.00032876,7]
[328049744,1716819042895,-500.0,0.00032876,7]
[328049745,1716819042906,-500.0,0.00032876,7]
[328049746,1716819042915,-500.0,0.00032876,7]
[328049747,1716819042925,-500.0,0.00032876,7]
[328049748,1716819042936,-500.0,0.00032876,7]
[328049749,1716819042945,-365.2,0.00032876,7]
[328049750,1716819042955,-500.0,0.00032876,7]
[328049751,1716819042965,-500.0,0.00032876,7]
[328049752,1716819042975,-500.0,0.00032876,7]
[328049753,1716819042984,-500.0,0.00032876,7]
[328049754,1716819042994,-500.0,0.00032876,7]
[328049755,1716819043004,-259.72,0.00032876,7]
[328049756,1716819043014,-500.0,0.00032876,7]
[328049757,1716819043023,-500.0,0.00032876,7]
[328049758,1716819043032,-500.0,0.00032876,7]
[328049759,1716819043042,-500.0,0.00032876,7]
[328049760,1716819043051,-500.0,0.00032876,7]
[328049761,1716819043061,-203.11089525,0.00032876,7]
[328049762,1716819043070,-500.0,0.00032876,7]
[328049763,1716819043081,-500.0,0.00032876,7]
[328049764,1716819043090,-500.0,0.00032876,7]
[328049765,1716819043099,-500.0,0.00032876,7]
[328049766,1716819043109,-500.0,0.00032876,7]
[328049767,1716819043118,-500.0,0.00032876,7]
[328049768,1716819043127,-500.0,0.00032876,7]
[328049769,1716819043137,-500.0,0.00032876,7]
[328049770,1716819043146,-500.0,0.00032876,7]
[328049771,1716819043155,-500.0,0.00032876,7]
[328049772,1716819043165,-500.0,0.00032876,7]
[328049773,1716819043174,-500.0,0.00032876,7]
[328049774,1716819043184,-500.0,0.00032876,7]
[328049775,1716819043193,-500.0,0.00032876,7]
[328049776,1716819043202,-500.0,0.00032876,7]
[328049777,1716819043211,-500.0,0.00032876,7]
[328049778,1716819043222,-613.33842378,0.00032876,7]
[328049779,1716819043232,-1228.53,0.00032876,7]
[328049780,1716819043241,-1228.53,0.00032876,7]
[328049781,1716819043250,-1228.53,0.00032876,7]
[328049782,1716819043259,-1228.53,0.00032876,7]
[328049783,1716819043268,-1228.53,0.00032876,7]
[328049784,1716819043277,-1228.53,0.00032876,7]
[328049785,1716819043286,-500.0,0.00032876,7]
[328049786,1716819043295,-500.0,0.00032876,7]
[328049787,1716819043304,-500.0,0.00032876,7]
[328049788,1716819043313,-294.56,0.00032876,7]
[328049789,1716819043323,-941.21,0.00032876,7]
[328049790,1716819043332,-941.21,0.00032876,7]
[328049791,1716819043342,-941.21,0.00032876,7]
[328049792,1716819043351,-941.21,0.00032876,7]
[328049793,1716819043360,-941.21,0.00032876,7]
[328049794,1716819043369,-630.4,0.00032876,7]
[328049795,1716819043378,-941.21,0.00032876,7]
[328049796,1716819043388,-630.4,0.00032876,7]
[328049797,1716819043397,-941.21,0.00032876,7]
[328049798,1716819043407,-630.4,0.00032876,7]
[328049799,1716819043416,-630.4,0.00032876,7]
[328049800,1716819043425,-630.4,0.00032876,7]
[328049801,1716819043435,-630.4,0.00032876,7]
[328049802,1716819043444,-583.27,0.00032876,7]
[328049803,1716819043453,-583.27,0.00032876,7]
[328049804,1716819043463,-583.27,0.00032876,7]
[328049805,1716819043472,-583.27,0.00032876,7]
[328049806,1716819043482,-583.27,0.00032876,7]
[328049807,1716819043491,-583.27,0.00032876,7]
[328049808,1716819043503,-583.27,0.00032876,7]
[328049809,1716819043513,-500.0,0.00032876,7]
[328049810,1716819043522,-500.0,0.00032876,7]
[328049811,1716819043532,-539.50982426,0.00032876,7]
[328049812,1716819043541,-500.0,0.00032876,7]
[328049813,1716819043551,-500.0,0.00032876,7]
[328049814,1716819043560,-500.0,0.00032876,7]
[328049815,1716819043724,-500.0,0.00032876,7]
[328049816,1716819043734,-640.60564992,0.00032876,7]
[328049817,1716819043744,-500.0,0.00032876,7]
[328049818,1716819043753,-961.18,0.00032876,7]
[328049819,1716819043763,-500.0,0.00032876,7]
[328049820,1716819043772,-961.18,0.00032876,7]
[328049821,1716819043782,-961.18,0.00032876,7]
[328049822,1716819043792,-500.0,0.00032876,7]
[328049823,1716819043801,-961.18,0.00032876,7]
[328049824,1716819043811,-500.0,0.00032876,7]
[328049825,1716819043820,-961.18,0.00032876,7]
[328049826,1716819043830,-500.0,0.00032876,7]
[328049827,1716819043840,-500.0,0.00032876,7]
[328049828,1716819043850,-500.0,0.00032876,7]
[328049829,1716819043865,-961.18,0.00032876,7]
[328049830,1716819043875,-500.0,0.00032876,7]
[328049831,1716819043896,-961.18,0.00032876,7]
[328049832,1716819043948,-500.0,0.00032876,7]
[328049833,1716819044079,-500.0,0.00032876,7]
[328049834,1716819044168,-878.87,0.00032876,7]
[328049835,1716819044294,-500.0,0.00032876,7]
[328049837,1716819044407,-878.87,0.00032876,7]
[328049838,1716819044487,-500.0,0.00032876,7]
[328049839,1716819044548,-878.87,0.00032876,7]
[328049840,1716819044578,-878.87,0.00032876,7]
[328049841,1716819044587,-878.87,0.00032876,7]
[328049842,1716819044598,-500.0,0.00032876,7]
[328049843,1716819044607,-878.87,0.00032876,7]
[328049844,1716819044616,-626.91961044,0.00032876,7]
[328049845,1716819044625,-878.87,0.00032876,7]
[328049846,1716819044634,-2975.92,0.00032876,7]
[328049847,1716819044643,-2975.92,0.00032876,7]
[328049848,1716819044652,-2975.92,0.00032876,7]
[328049849,1716819044662,-2975.92,0.00032876,7]
[328049850,1716819044671,-2975.92,0.00032876,7]
[328049851,1716819044680,-2975.92,0.00032876,7]
[328049852,1716819044689,-500.0,0.00032876,7]
[328049853,1716819044699,-500.0,0.00032876,7]
[328049854,1716819044707,-500.0,0.00032876,7]
[328049855,1716819044717,-500.0,0.00032876,7]
[328049856,1716819044728,-500.0,0.00032876,7]
[328049857,1716819044738,-500.0,0.00032876,7]
[328049858,1716819044747,-500.0,0.00032876,7]
[328049859,1716819044756,-1050.33,0.00032876,7]
[328049860,1716819044766,-1050.33,0.00032876,7]
[328049861,1716819044775,-1050.33,0.00032876,7]
[328049862,1716819044784,-1050.33,0.00032876,7]
[328049863,1716819044794,-1050.33,0.00032876,7]
[328049864,1716819044803,-1050.33,0.00032876,7]
[328049865,1716819044812,-1050.33,0.00032876,7]
[328049866,1716819044822,-500.0,0.00032876,7]
[328049867,1716819044831,-500.0,0.00032876,7]
[328049868,1716819044840,-500.0,0.00032876,7]
[328049869,1716819044850,-500.0,0.00032876,7]
[328049870,1716819044862,-500.0,0.00032876,7]
[328049871,1716819044872,-500.0,0.00032876,7]
[328049872,1716819044882,-500.0,0.00032876,7]
[328049873,1716819044892,-500.0,0.00032876,7]
[328049874,1716819044902,-500.0,0.00032876,7]
[328049875,1716819044912,-500.0,0.00032876,7]
[328049876,1716819044922,-500.0,0.00032876,7]
[328049877,1716819044931,-500.0,0.00032876,7]
[328049878,1716819044944,-500.0,0.00032876,7]
[328049879,1716819044955,-500.0,0.00032876,7]
[328049880,1716819044966,-500.0,0.00032876,7]
[328049881,1716819044975,-500.0,0.00032876,7]
[328049882,1716819044985,-500.0,0.00032876,7]
[328049883,1716819044994,-500.0,0.00032876,7]
[328049884,1716819045004,-500.0,0.00032876,7]
[328049885,1716819045014,-500.0,0.00032876,7]
[328049886,1716819045024,-500.0,0.00032876,7]
[328049887,1716819045035,-500.0,0.00032876,7]
[328049888,1716819045046,-500.0,0.00032876,7]
[328049889,1716819045057,-500.0,0.00032876,7]
[328049890,1716819045068,-500.0,0.00032876,7]
[328049891,1716819045078,-500.0,0.00032876,7]
[328049892,1716819045088,-500.0,0.00032876,7]
[328049893,1716819045098,-500.0,0.00032876,7]
[328049894,1716819045107,-1085.87,0.00032876,7]
[328049895,1716819045116,-1085.87,0.00032876,7]
[328049896,1716819045126,-1085.87,0.00032876,7]
[328049897,1716819045136,-1085.87,0.00032876,7]
[328049898,1716819045146,-1085.87,0.00032876,7]
[328049899,1716819045155,-1085.87,0.00032876,7]
[328049900,1716819045165,-1085.87,0.00032876,7]
[328049901,1716819045175,-500.0,0.00032876,7]
[328049902,1716819045184,-500.0,0.00032876,7]
[328049903,1716819045194,-500.0,0.00032876,7]
[328049904,1716819045204,-500.0,0.00032876,7]
[328049905,1716819045215,-500.0,0.00032876,7]
[328049906,1716819045226,-500.0,0.00032876,7]
[328049907,1716819045235,-500.0,0.00032876,7]
[328049908,1716819045245,-500.0,0.00032876,7]
[328049909,1716819045256,-500.0,0.00032876,7]
[328049910,1716819045266,-500.0,0.00032876,7]
[328049911,1716819045276,-500.0,0.00032876,7]
[328049912,1716819045286,-500.0,0.00032876,7]
[328049913,1716819045296,-500.0,0.00032876,7]
[328049914,1716819045307,-500.0,0.00032876,7]
[328049915,1716819045316,-500.0,0.00032876,7]
[328049916,1716819045326,-500.0,0.00032876,7]
[328049917,1716819045336,-500.0,0.00032876,7]
[328049918,1716819045346,-500.0,0.00032876,7]
[328049919,1716819045356,-500.0,0.00032876,7]
[328049920,1716819045366,-500.0,0.00032876,7]
[328049921,1716819045376,-500.0,0.00032876,7]
[328049922,1716819045386,-552.78,0.00032876,7]
[328049923,1716819045396,-552.78,0.00032876,7]
[328049924,1716819045406,-500.0,0.00032876,7]
[328049925,1716819045416,-500.0,0.00032876,7]
[328049926,1716819045426,-552.78,0.00032876,7]
[328049927,1716819045437,-500.0,0.00032876,7]
[328049928,1716819045447,-552.78,0.00032876,7]
[328049929,1716819045457,-500.0,0.00032876,7]
[328049930,1716819045466,-552.78,0.00032876,7]
[328049931,1716819045477,-500.0,0.00032876,7]
[328049932,1716819045488,-552.78,0.00032876,7]
[328049933,1716819045498,-500.0,0.00032876,7]
[328049934,1716819045508,-552.78,0.00032876,7]
[328049935,1716819045518,-500.0,0.00032876,7]
[328049936,1716819045528,-5684.33,0.00032876,7]
[328049937,1716819045538,-5684.33,0.00032876,7]
[328049938,1716819045548,-5684.33,0.00032876,7]
[328049939,1716819045558,-3355.46,0.00032876,7]
[328049940,1716819045567,-582.47,0.00032876,7]
[328049941,1716819045577,-5684.33,0.00032876,7]
[328049942,1716819045587,-3355.46,0.00032876,7]
[328049944,1716819045596,-582.47,0.00032876,7]
[328049946,1716819045606,-5684.33,0.00032876,7]
[328049948,1716819045616,-3355.46,0.00032876,7]
[328049950,1716819045626,-582.47,0.00032876,7]
[328049953,1716819045635,-5684.33,0.00032876,7]
[328049954,1716819045644,-3355.46,0.00032876,7]
[328049955,1716819045654,-5684.33,0.00032876,7]
[328049956,1716819045664,-582.47,0.00032876,7]
[328049957,1716819045674,-3355.46,0.00032876,7]
[328049958,1716819045684,-582.47,0.00032876,7]
[328049959,1716819045693,-3355.46,0.00032876,7]
[328049960,1716819045703,-582.47,0.00032876,7]
[328049961,1716819045712,-3355.46,0.00032876,7]
[328049962,1716819045721,-582.47,0.00032876,7]
[328049963,1716819045732,-500.0,0.00032876,7]
[328049964,1716819045742,-500.0,0.00032876,7]
[328049965,1716819045752,-500.0,0.00032876,7]
[328049966,1716819045762,-500.0,0.00032876,7]
[328049967,1716819045772,-500.0,0.00032876,7]
[328049968,1716819045782,-500.0,0.00032876,7]
[328049969,1716819045792,-500.0,0.00032876,7]
[328049970,1716819045801,-500.0,0.00032876,7]
[328049971,1716819045810,-500.0,0.00032876,7]
[328049972,1716819045820,-500.0,0.00032876,7]
[328049973,1716819045829,-500.0,0.00032876,7]
[328049974,1716819045839,-500.0,0.00032876,7]
[328049975,1716819045848,-500.0,0.00032876,7]
[328049976,1716819045862,-500.0,0.00032876,7]